Cogmind - Beta 9.3 @@@ ROGUE MODE // 2020.01.05 @ 18:13:46 Player: derk Result: Destroyed by as-33430 with Assembled Heavy Rifle Performance ------------- Evolutions (0) 0 Regions Visited (4) 800 Robots Destroyed (35) 175 Value Destroyed (398) 398 Prototype IDs (25) 500 Alien Tech Used (0) 0 Bonus (-41) -41 TOTAL SCORE: 1832 Bonus ------- Aligned with FarCom 300 Friendly Fire -341 Cogmind --------- Core Integrity 0/250 Matter 213/300 Energy 124/125 System Corruption 4% Temperature Cool (0) Movement Rolling (100) Ox2 Location -9/Mines Parts ------- > --- POWER (1) -------- Light Ion Engine > --- PROPULSION (2) --- Aluminum Leg Wheel > --- UTILITY (2) ------ Large Storage Unit Supersonic Drone Bay (1/1) > --- WEAPON (2) ------- Light Assault Rifle > --- INVENTORY (10) --- Disposable Heat Sink Medium Storage Unit Large Storage Unit Large Storage Unit Experimental Sensor Array Signal Interpreter Peak State ------------ > --- POWER ------------ Light Nuclear Core > --- PROPULSION ------- Aluminum Leg Wheel > --- UTILITY ---------- Large Storage Unit Supersonic Drone Bay > --- WEAPON ----------- Particle Cannon Rocket Launcher > --- INVENTORY -------- Light Ion Engine Aluminum Leg Disposable Heat Sink Medium Storage Unit Large Storage Unit Experimental Sensor Array Signal Interpreter [Rating: 19] Favorites ----------- Power Light Nuclear Core Engine Ion Engine Power Core Light Nuclear Core Propulsion Aluminum Leg Leg Aluminum Leg Wheel Wheel Utility Large Storage Unit Device Experimental Sensor Array Storage Large Storage Unit Processor Targeting Computer Weapon Particle Cannon Energy Gun Small Laser Energy Cannon Particle Cannon Ballistic Gun Light Assault Rifle Launcher Rocket Launcher Special Weapon Plasma Cutter Build | -11 -10 -10 -10 -9 ------- Run | Scr Mat Min Exi Min Slots Evolved . | . . . . . Power . | . . . . . Propulsion . | . . . . . Utility . | . . . . . Weapon . | . . . . . Parts Attached 33 | 5 12 9 4 3 Power 4 | 1 . 2 . 1 Engine 3 | 1 . 1 . 1 Core 1 | . . 1 . . Reactor . | . . . . . Propulsion 8 | 1 5 . 1 1 Treads . | . . . . . Leg 3 | . 2 . . 1 Wheel 5 | 1 3 . 1 . Hover . | . . . . . Flight . | . . . . . Utility 11 | 1 4 3 3 . Device 5 | . 1 2 2 . Storage 5 | 1 3 . 1 . Processor 1 | . . 1 . . Hackware . | . . . . . Protection . | . . . . . Artifact . | . . . . . Weapon 10 | 2 3 4 . 1 Energy Gun 3 | 2 1 . . . Energy Cannon 2 | . 1 1 . . Ballistic Gun 1 | . . . . 1 Ballistic Cannon . | . . . . . Launcher 2 | . . 2 . . Special Weapon 2 | . 1 1 . . Impact Weapon . | . . . . . Slashing Weapon . | . . . . . Piercing Weapon . | . . . . . Special Melee Weapon . | . . . . . Unidentified Prototypes 2 | . . 1 1 . Parts Lost 13 | . 7 2 . 4 Power 1 | . . . . 1 Propulsion 3 | . 2 . . 1 Utility . | . . . . . Weapon 9 | . 5 2 . 2 Highest Loss Streak 4 | . 3 2 . 4 Average Slot Usage (%) 98 | . 98 96 100 94 Engine 5 | . 14 7 . 1 Core 8 | . . 6 14 12 Leg 17 | . 11 28 18 14 Wheel 10 | . 16 . 9 14 Device 8 | . . 8 14 14 Storage 18 | . 27 16 14 14 Energy Gun 4 | . 13 . . . Energy Cannon 10 | . 8 7 14 7 Launcher 8 | . . 10 14 8 Special Weapon 2 | . 5 6 . . Naked Turns . | . . . . . Heaviest Build 43 | 11 43 41 30 30 Greatest Support 26 | 10 26 20 20 10 Greatest Overweight (x) 2 | 1 2 2 2 2 Average Overweight (x) 1 | . 1 1 1 1 Largest Inventory Capacity 16 | 6 16 16 10 10 Average Capacity 11 | 5 15 11 10 10 Most Carried 16 | 5 16 14 10 9 Average Carried 9 | 4 12 9 7 7 Final Capacity 16 | 6 16 10 10 10 Final Carried 15 | 5 15 8 8 6 Class Distribution -------------------- 100% | Mutant Dominant Class ---------------- Mutant | -10/Materials Mutant | -10/Mines Mutant | -10/Exiles Mutant | -9/Mines Resources | -11 -10 -10 -10 -9 ----------- Run | Scr Mat Min Exi Min Matter Collected 543 | 219 189 104 10 21 Remotely . | . . . . . Salvage Created 576 | 62 282 63 . 169 Parts 39 | . 24 3 . 12 Haulers Intercepted . | . . . . . Recyclers Shooed . | . . . . . Parts Field Recycled . | . . . . . Retrieved Matter . | . . . . . Parts Self-Destructed . | . . . . . Prevented . | . . . . . Kills | -11 -10 -10 -10 -9 ------- Run | Scr Mat Min Exi Min Combat Hostiles Destroyed 30 | . 11 2 . 17 Guns 8 | . 8 . . . Cannons 5 | . 3 2 . . AOE 17 | . . . . 17 Classes Destroyed 7 | 1 2 1 . 3 Worker 1 | . . 1 . . Recycler 1 | 1 . . . . Swarmer 10 | . 6 . . 4 Grunt 7 | . 5 2 . . Zionite 1 | . . . . 1 Assembled 13 | . . . . 13 Thug 1 | . . . . 1 Guerrilla 1 | . . . . 1 Best Kill Streak 13 | 1 3 2 . 13 Combat Bots Only 13 | . 3 2 . 13 Max Kills in Single Turn 6 | 1 1 1 . 6 Gunslinging . | . . . . . Exploded 6 | . . . . 6 Melee . | . . . . . Uniques/NPCs Destroyed . | . . . . . Combat | -11 -10 -10 -10 -9 -------- Run | Scr Mat Min Exi Min Damage Taken 1360 | . 558 283 . 519 Core 258 | . 96 37 . 125 Absorbed by Shields . | . . . . . Core Remaining (%) 100 | 100 . . . . Volleys Fired 67 | 5 39 11 1 11 Largest 2 | 2 2 1 1 2 Hottest 118 | 80 118 68 68 53 Shots Fired 94 | 10 59 11 1 13 Gun 59 | 10 43 . . 6 Cannon 24 | . 15 8 1 . Launcher 10 | . . 3 . 7 Special 1 | . 1 . . . Kinetic 6 | . . . . 6 Thermal 78 | 10 59 8 1 . Explosive 10 | . . 3 . 7 Electromagnetic . | . . . . . Robot Hit Streak 15 | 4 15 5 . 4 Robot Miss Streak 2 | 1 2 1 . 2 Penetration Max . | . . . . . Secondary Targets . | . . . . . Shots Hit Robots 58 | 7 39 6 . 6 Core Hits 57 | 2 17 5 . 33 Critical Hits . | . . . . . Critical Kills . | . . . . . Critical Parts Destroyed . | . . . . . Melee Attacks . | . . . . . Impact . | . . . . . Slashing . | . . . . . Piercing . | . . . . . Sneak Attacks . | . . . . . Combat Hostiles . | . . . . . Follow-up Attacks . | . . . . . Damage Inflicted 2204 | 87 490 323 . 1304 Guns 417 | 87 301 . . 29 Cannons 326 | . 184 142 . . Explosions 1453 | . . 178 . 1275 Melee . | . . . . . Ramming 8 | . 5 3 . . Kinetic 29 | . . . . 29 Thermal 714 | 87 485 142 . . Explosive 1453 | . . 178 . 1275 Electromagnetic . | . . . . . Impact . | . . . . . Slashing . | . . . . . Piercing . | . . . . . Highest Corruption 4 | . . . . 4 Average Corruption 4 | . . . . 4 Corruption Purged . | . . . . . Overload Shots . | . . . . . Overflow Damage 84 | . 13 . . 71 Projectiles 13 | . 13 . . . Explosions 71 | . . . . 71 Melee . | . . . . . Knockbacks . | . . . . . Impact . | . . . . . Kinetic . | . . . . . Secondary . | . . . . . Self-Inflicted Damage 160 | . 2 67 . 91 Shots 6 | . . 3 . 3 Rammed 2 | . 2 . . . Targets Rammed 3 | . 2 1 . . Kicked 1 | . . 1 . . Crushed . | . . . . . Highest Temperature 215 | 72 163 215 32 16 Average Temperature 58 | 33 54 104 21 6 Received Heat Transfer 317 | . 174 123 . 20 Siege Activations . | . . . . . Robots Corrupted . | . . . . . Combat Hostiles . | . . . . . Parts Fried . | . . . . . Impact Corruptions . | . . . . . Robots Melted . | . . . . . Combat Hostiles . | . . . . . Parts Melted 3 | . 3 . . . Heat Transferred 1550 | 200 1091 259 . . Parts Sabotaged . | . . . . . Parts Stolen . | . . . . . Parts Stripped . | . . . . . Power Chain Reactions . | . . . . . Missiles Intercepted . | . . . . . Alert | -11 -10 -10 -10 -9 ------- Run | Scr Mat Min Exi Min Peak Influence 218 | 5 218 51 . 135 Average Influence 71 | . 97 30 . 120 Maximum Alert Level 1 | . 1 . . . Low Security (%) 94 | 100 90 100 . 100 Level 1 5 | . 9 . . . Level 2 . | . . . . . Level 3 . | . . . . . Level 4 . | . . . . . Level 5 . | . . . . . High Security . | . . . . . Max Security . | . . . . . Squads Dispatched 2 | . 2 . . . Investigation 1 | . 1 . . . Extermination . | . . . . . Reinforcement 1 | . 1 . . . Assault . | . . . . . Garrison . | . . . . . Intercept . | . . . . . Construction Impeded . | . . . . . Haulers Reinforced . | . . . . . Stealth | -11 -10 -10 -10 -9 --------- Run | Scr Mat Min Exi Min Distress Signals 3 | . 3 . . . Communications Jammed . | . . . . . Distress Signals . | . . . . . Times Spotted 41 | . 20 2 . 19 Peak Tracking Total 16 | . 4 2 . 16 Tactical Retreats 1 | . 1 . . . Traps | -11 -10 -10 -10 -9 ------- Run | Scr Mat Min Exi Min Traps Triggered 1 | . 1 . . . Indirectly . | . . . . . Trap Hack Attempts . | . . . . . Triggered . | . . . . . Disarmed . | . . . . . Reprogrammed . | . . . . . Reused . | . . . . . Traps Extracted . | . . . . . Installed . | . . . . . Triggered . | . . . . . Machines | -11 -10 -10 -10 -9 ---------- Run | Scr Mat Min Exi Min Machines Disabled 4 | . 1 . . 3 Max in Single Turn 3 | . 1 . . 3 Machines Sabotaged . | . . . . . Garrisons Compromised . | . . . . . Overloaded Fab Kills . | . . . . . Fab Network Shutdowns . | . . . . . Hacking | -11 -10 -10 -10 -9 --------- Run | Scr Mat Min Exi Min Machines Accessed 9 | . 3 1 5 . Terminals 4 | . 3 1 . . Fabricators . | . . . . . Repair Stations . | . . . . . Recycling Units . | . . . . . Scanalyzers . | . . . . . Garrison Access . | . . . . . Total Hacks 62 | . 9 4 49 . Successful 57 | . 6 2 49 . Failed 5 | . 3 2 . . Catastrophic 2 | . 1 1 . . Database Lockouts . | . . . . . Manual 8 | . 5 2 1 . Terminals 13 | . 9 4 . . Fabricators . | . . . . . Repair Stations . | . . . . . Recycling Units . | . . . . . Scanalyzers . | . . . . . Garrison Access . | . . . . . Terminal Hacks 55 | . 5 1 49 . Record 48 | . . . 48 . Prototype ID Bank 1 | . 1 . . . Unreport Threat 1 | . 1 . . . Locate Traps 1 | . 1 . . . Hauler Manifests 1 | . 1 . . . Zone Layout 2 | . 1 1 . . EX-Prototype ID Bank 1 | . . . 1 . Fabricator Hacks . | . . . . . Repair Station Hacks . | . . . . . Recycling Unit Hacks . | . . . . . Scanalyzer . | . . . . . Garrison Access Hacks . | . . . . . Unauthorized Hacks 8 | . 5 3 . . Terminals 2 | . 1 1 . . Botnet 2 | . 1 1 . . Fabricators . | . . . . . Repair Stations . | . . . . . Recycling Units . | . . . . . Scanalyzers . | . . . . . Garrison Access . | . . . . . Data Cores Recovered . | . . . . . Used . | . . . . . Hacking Detections 3 | . 2 1 . . Full Trace Events 2 | . 1 1 . . Feedback Events . | . . . . . Feedback Blocked . | . . . . . Robot Schematics Acquired . | . . . . . Robots Built . | . . . . . Matter . | . . . . . Time . | . . . . . Total Robot Build Rating . | . . . . . Part Schematics Acquired . | . . . . . Parts Built . | . . . . . Matter . | . . . . . Time . | . . . . . Total Part Build Rating . | . . . . . Parts Repaired . | . . . . . Time . | . . . . . Parts Recycled . | . . . . . Recycled Matter . | . . . . . Retrieved Matter . | . . . . . Retrieved Components . | . . . . . Parts Scanalyzed . | . . . . . Part Schematics Acquired . | . . . . . Parts Damaged . | . . . . . Bothacking | -11 -10 -10 -10 -9 ------------ Run | Scr Mat Min Exi Min Used RIF Installer . | . . . . . Robots Hacked . | . . . . . Non-combat . | . . . . . Combat . | . . . . . Robot Hacks Applied . | . . . . . Relay Couplers Released . | . . . . . Robots Rewired . | . . . . . Allies Hacked . | . . . . . Hacks Repelled . | . . . . . Allies | -11 -10 -10 -10 -9 -------- Run | Scr Mat Min Exi Min Total Allies 2 | . . . . 2 Largest Group 2 | . . . . 2 Highest-Rated Group 52 | . . . . 52 Highest-Rated Ally 31 | . . . . 31 Total Orders 3 | . . . 3 . EXPLORE 2 | . . . 2 . RETURN 1 | . . . 1 . Ally Attacks 2 | . . . . 2 Total Damage 21 | . . . . 21 Kills . | . . . . . Allies Corrupted . | . . . . . Allies Melted . | . . . . . Intel | -11 -10 -10 -10 -9 ------- Run | Scr Mat Min Exi Min Robot Analysis Total . | . . . . . Derelict Logs Recovered 1 | . . 1 . . Drone Launches 1 | . . . 1 . Drone Recoveries 1 | . . . 1 . Exploration | -11 -10 -10 -10 -9 ------------- Run | Scr Mat Min Exi Min Turns Passed 1893 | 98 586 297 836 76 Spaces Moved 1326 | 81 296 163 736 50 Core 1 | 1 . . . . Treads . | . . . . . Legs 462 | . 122 163 177 . Wheels 863 | 80 174 . 559 50 Hover . | . . . . . Flight . | . . . . . Fastest Speed 50 | 50 80 150 100 90 Average Speed 119 | 87 131 152 112 99 Slowest Speed 180 | 90 180 180 150 100 Overloaded Moves . | . . . . . Propulsion Burnouts . | . . . . . Robots Hopped . | . . . . . Cave-ins Triggered . | . . . . . Exploration Rate (%) 43 | 4 56 39 96 20 Regions Visited 4 Branch Regions 3 Pre-discovered Areas 1 | . . . 1 . Known Exits Taken . | . . . . . Unknown Exits Taken 4 | 1 1 1 1 . Scrap Searched 1 | . . 1 . . Spaces Dug 17 | . . 17 . . Terrain Destroyed 83 | . . 24 . 59 Melee . | . . . . . Projectile . | . . . . . AOE 83 | . . 24 . 59 Actions | -11 -10 -10 -10 -9 --------- Run | Scr Mat Min Exi Min Total 1537 | 96 430 200 746 65 Wait 71 | . 61 10 . . Move 1323 | 80 296 162 735 50 Hop . | . . . . . Pick Up 30 | 6 19 2 2 1 Fast Attach 9 | 4 3 1 1 . Attach 14 | 1 6 4 . 3 Detach 1 | . . . 1 . Swap 10 | . 3 4 3 . Drop 10 | . 2 5 3 . Fire 67 | 5 39 11 1 11 Melee . | . . . . . Ram . | . . . . . Kick 2 | . 1 1 . . Crush . | . . . . . Escape Stasis . | . . . . . Rewire . | . . . . . Trap . | . . . . . Miscellaneous . | . . . . . Route ------- -11/Scrapyard -10/Materials (discovered 2 exits: [*Mat] / *Min) -10/Mines (discovered 3 exits: [*Mat x2] / *Exi) -10/Exiles (discovered 2 exits: [*Min x2]) -9/Mines History --------- Turn | Location | Event 17 | -11/Scrapyard | Discovered new exit (range 16) 99 | -11/Scrapyard | Entered Materials 303 | -10/Materials | Build established: Mutant 475 | -10/Materials | Lost 3 parts (2n1w) 500 | -10/Materials | Discovered new exit (range 16) 670 | -10/Materials | Discovered new exit (range 5) 685 | -10/Materials | Entered Mines 739 | -10/Mines | Found a damaged Exp. Sensor Array with a note attached 744 | -10/Mines | Found Prototype Device 745 | -10/Mines | Identified Exp. Sensor Array 774 | -10/Mines | Discovered new exit (range 5) 809 | -10/Mines | Discovered new exit (range 5) 814 | -10/Mines | Received a Rocket Launcher from a helpful Derelict 829 | -10/Mines | Core integrity fell below 50% 976 | -10/Mines | Deemed a non-threat by the Exiles lab entrance 976 | -10/Mines | Discovered new exit (range 5) 982 | -10/Mines | Entered Exiles 1013 | -10/Exiles | Discovered new exit (range 14) 1058 | -10/Exiles | Met 8R-AWN 1085 | -10/Exiles | Met EX-HEX 1222 | -10/Exiles | Met EX-DEC 1251 | -10/Exiles | Learned location of Zion (-7) 1280 | -10/Exiles | Met EX-BIN 1295 | -10/Exiles | Aligned with FarCom system 1296 | -10/Exiles | Given EX-Vault access code 1363 | -10/Exiles | Opened EX-Vault 1369 | -10/Exiles | Found Prototype Device 1369 | -10/Exiles | Identified Supersonic Drone Bay 1373 | -10/Exiles | Discovered new exit (range 56) 1391 | -10/Exiles | Warned to stay clear of 0b10 Research branches 1612 | -10/Exiles | Visited The Gauntlet 1818 | -10/Exiles | Left Exiles lab with Supersonic Drone Bay 1818 | -10/Exiles | Entered Mines 1846 | -9/Mines | Assembled infested the area 1851 | -9/Mines | Assisted by a Guerilla fighting off Assembled 1879 | -9/Mines | Core integrity fell below 20% 1886 | -9/Mines | Destroyed 13 combat bots 1894 | -9/Mines | Destroyed by as-33430 with Assembled Heavy Rifle Last Messages --------------- 01860_ as-50718 destroyed. 01860_ as-12906 destroyed. 01863_ as-82008 destroyed. 01863_ as-37547 destroyed. 01863_ as-75706 destroyed. 01863_ as-14792 destroyed. [Achievement: Quick And Dirty] 01863_ as-52126 destroyed. 01864_ Aluminum Leg destroyed. 01864_ System corrupted by crushing effect (+4). 01864_ Knocked back. 01865_ Destroyed Asb. Hover Unit. 01865_ as-91063 destroyed. 01865_ Rocket Launcher destroyed. 01865_ Destroyed Rocket Launcher. 01869_ Knocked back. 01884_ Lgt. Nuclear Core destroyed. 01885_ R-06 Scavenger collects Lgt. Ion Engine. 01889_ as-58653 destroyed. 01889_ R-06 Scavenger collects Lgt. Assault Rifle. Map ----- +----------------------------------------------------+ | | | | | | | | | | | | | | | | | | | | | | | | | ?????????????????????????????????????????????????? | | ?????????????????????????????????????????????????? | | ?????????????????????????????????????????????????? | | ?????????????????????????????????????????????????? | | ?????????????????????????????????????????????????? | | ?????????????????????????????????????????????????? | | ?????????????????????????????????????????????????? | | ?????????????????????????????????????????????????? | | ??????????????????############???????????????????? | | ??????????????????# #???????????????????? | | ??????????????????# #???????????????????? | | ??????????????????# r #???????????????????? | | ??????????????????# = " #???????????????????? | | ??????????????????# % @ #???????????????????? | | ??????????????????# #???????????????????? | | ??????????????????# a #???????????????????? | | ??????????????????# " " #???????????????????? | | ??????????????????# """ "" #???????????????????? | | ??????????????????# a #???????????????????? | | ??????????????????# #???????????????????? | | ??????????????????####### ####???????????????????? | | ????????????????????????# #??????????????????????? | | ????????????????????????# #??????????????????????? | | ?????????????????######## #??????????????????????? | | ?????????? #??????????????????????? | | ?????????????????######## #######????????????????? | | ????????????????????#### % #????????????????? | | ????????????????????# a #??????????#####?? | | ???????????????????# #### ##???????? ?? | | ??????????????????# #?# # ##??? #? | | ??????????????????# #?# ### ? | | ??????????????????# ## = %%% | | ??????????????????# ## =%! | | ??????????????????# ## % % # | | ?????????????????# ?## # ? | | ????????????????# ??# #?? ####?? | | ????????????????# ??## # ##????????? | | ????????????????## ???###### ###?????????? | +----------------------------------------------------+ Best States ------------- Heat Dissipation 25 Coolant Potential 50 Energy Generation 14 Energy Capacity 250 Matter Stores 300 Matter Capacity 300 Sight Range 16 Robot Scan Range 30 Terrain Scan Density 10 Evasion (%) 44 Targeting Accuracy 5 Item Schematics ----------------- None Robot Schematics ------------------ None Fabricated ------------ Nothing Alien Tech Used ----------------- None Achievements -------------- Librarian Quick And Dirty Challenges ------------ None Game ------ Seed FusionLobotomyDriver Manual? 0 Play Time 00:39:13 Cumulative 14.8 hours Start 2020.01.04 @ 17:21:36 End 2020.01.05 @ 18:13:46 Sessions 3 Manual Loads 0 Difficulty Rogue Special Mode None Game No. 5 Rogue 5 Adventurer 0 Explorer 0 Win Type - Total 0 Types 0/0/0/0/0/0/0 Lore% 14 Gallery% 25 Achievement% 22 Wizard Run 0 Options --------- ASCII 0 Keyboard 0 Movement Numpad Keybinds 0 Fullscreen 1 Font 18/SmallcapsGlow Map View 76x50 Tactical HUD 1 Map Filters NONE Filters NONE Steam 1 RUN: 994f8dee-03ee-4a29-80f0-ced60c8bbfa9